bitfinex/quotes_SOLUSD_20240816
["timestamp","ask_amount","ask_price","bid_price","bid_amount"]
[1723828483980,7.2782,137.4,137.37,1.45510599]
[1723828484179,7.2775,137.41,137.36,7.28]
[1723828484608,18.1914,137.43,137.35,18.2013]
[1723828484993,7.2786,137.39,137.36,45.0]
[1723828485404,7.2786,137.39,137.35,18.2013]
[1723828485605,7.2781,137.4,137.35,25.4817]
[1723828485781,7.2781,137.4,137.36,7.2801]
[1723828485980,7.2781,137.4,137.35,18.2013]
[1723828486210,7.2781,137.4,137.35,25.4818]
[1723828486710,7.2781,137.4,137.36,45.0]
[1723828486919,18.1914,137.43,137.36,45.0]
[1723828487087,7.279,137.38,137.36,45.0]
[1723828487281,7.2796,137.37,137.34,22.034]
[1723828487482,10.15365308,137.44,137.31,6.5328]
[1723828487681,18.1978,137.38,137.31,6.5328]
[1723828487913,7.2806,137.35,137.31,6.5328]
[1723828488291,7.2802,137.36,137.31,13.8154]
[1723828488495,7.2796,137.37,137.32,7.2821]
[1723828488815,18.1942,137.41,137.33,45.0]
[1723828489022,18.1942,137.41,137.34,1.45549618]
[1723828489224,7.2779,137.41,137.36,7.2799]
[1723828489399,22.6284,137.58,137.39,27.293]
[1723828489602,18.1801,137.52,137.41,18.1927]
[1723828489930,7.275,137.46,137.42,45.0]
[1723828490096,18.1801,137.52,137.42,45.0]
[1723828490290,18.1825,137.5,137.42,45.0]
[1723828491296,18.1825,137.5,137.42,45.98750013]
[1723828492028,7.2747,137.47,137.42,52.2767]
[1723828492829,7.2748,137.46,137.42,52.2767]
[1723828493011,7.2748,137.46,137.42,45.0]
[1723828493210,18.1825,137.5,137.42,45.0]
[1723828493419,16.1428,137.51,137.37,22.3689]
[1723828493715,18.1877,137.46,137.37,22.3689]
[1723828494113,7.2768,137.43,137.38,8.72954849]
[1723828494432,7.276,137.44,137.39,7.2783]
[1723828494620,7.276,137.44,137.4,1.45053731]
[1723828494929,7.276,137.44,137.4,46.45053731]
[1723828495110,7.276,137.44,137.4,45.0]
[1723828495499,7.276,137.44,137.4,46.45041375]
[1723828495705,7.276,137.44,137.4,45.0]
[1723828496232,7.2769,137.42,137.4,45.0]
[1723828496440,2.98873565,137.48,137.35,6.5428]
[1723828496608,7.278,137.4,137.35,6.5428]
[1723828497203,7.278,137.4,137.35,13.8233]
[1723828497727,7.278,137.4,137.36,45.0]
[1723828498317,7.2786,137.39,137.36,45.0]
[1723828499322,7.2799,137.37,137.35,6.5428]
[1723828500237,30.0,137.36,137.35,6.5428]
[1723828500903,30.0,137.36,137.31,6.6351]
[1723828501138,7.2808,137.35,137.31,13.9178]
[1723828501336,7.2808,137.35,137.31,6.6351]
[1723828501547,7.2822,137.32,137.29,15.8901]
[1723828502106,7.2831,137.31,137.29,15.8901]
[1723828502424,7.2828,137.31,137.29,15.8901]
[1723828502617,18.202,137.35,137.29,15.8901]
[1723828502850,7.2828,137.31,137.29,15.8901]
[1723828503132,7.2833,137.3,137.27,6.4655]
[1723828503328,18.202,137.35,137.27,6.4655]
[1723828503532,30.0,137.36,137.27,6.4655]
[1723828503533,37.2802,137.36,137.32,7.2821]
[1723828503838,7.281,137.35,137.3,25.4906]
[1723828504018,7.281,137.35,137.3,18.2074]
[1723828504218,37.2803,137.36,137.31,52.2827]
[1723828505216,30.0,137.36,137.27,24.6769]
[1723828505811,7.2818,137.33,137.28,7.2842]
[1723828506006,7.2833,137.3,137.27,6.4655]
[1723828506231,7.2824,137.32,137.27,13.7498]
[1723828506506,7.2824,137.32,137.27,14.28864396]
[1723828506705,7.2823,137.32,137.27,13.75]
[1723828507141,7.282,137.33,137.28,25.4946]
[1723828507438,30.0,137.36,137.28,18.2106]
[1723828507439,48.2007,137.36,137.28,18.2106]
[1723828507620,7.2831,137.31,137.27,6.4655]
[1723828508019,18.2035,137.34,137.27,6.4655]
[1723828508207,7.284,137.29,137.27,6.4655]
[1723828508536,36.1317,137.36,137.26,0.8147396]
[1723828508537,7.2849,137.27,137.26,0.8147396]
[1723828508717,33.9683,137.35,137.26,0.8147396]
[1723828509125,7.2839,137.29,137.26,0.8147396]
[1723828509527,7.2833,137.3,137.26,0.8147396]
[1723828510116,7.2833,137.3,137.26,45.8147396]
[1723828510311,7.2838,137.29,137.26,0.8147396]
[1723828511522,7.2849,137.27,137.26,0.8147396]
[1723828511753,23.32295321,137.35,137.21,15.5986]
[1723828511754,7.2865,137.25,137.21,15.5986]
[1723828512219,7.2865,137.25,137.21,22.8866]
[1723828512642,7.2855,137.26,137.21,22.8866]
[1723828513142,7.2868,137.24,137.21,15.5986]
[1723828513523,7.2861,137.25,137.21,15.5986]
[1723828514617,18.2129,137.27,137.17,40.8219]
[1723828514942,7.2877,137.22,137.17,48.112]
[1723828515173,7.2872,137.23,137.18,7.2896]
[1723828515327,7.2872,137.23,137.17,40.8219]
[1723828515511,7.2872,137.23,137.18,7.2893]
[1723828515715,7.2875,137.22,137.17,48.1119]
[1723828515947,7.2881,137.21,137.17,40.8219]
[1723828516112,7.2881,137.21,137.17,18.2247]
[1723828516319,7.2891,137.19,137.14,31.7597]
[1723828517225,6.1924,137.19,137.12,0.8147396]
[1723828517434,7.2923,137.13,137.12,0.8147396]
[1723828518030,6.1924,137.19,137.04,7.55836714]
[1723828518260,7.2919,137.14,137.09,2.43500412]
[1723828518551,18.2222,137.2,137.12,7.2927]
[1723828518713,7.2896,137.19,137.13,7.292]
[1723828518935,7.2896,137.19,137.13,7.2922]
[1723828519138,7.2887,137.2,137.11,6.6478]
[1723828519335,7.2893,137.19,137.14,8.74737315]
[1723828519562,18.2141,137.26,137.15,19.68332269]
[1723828519788,18.2141,137.26,137.16,45.0]
[1723828520575,7.2886,137.2,137.16,45.0]
[1723828520771,7.2897,137.18,137.13,7.2921]
[1723828520952,7.2892,137.19,137.14,7.2917]
[1723828521143,18.218,137.23,137.12,18.2317]
[1723828521343,18.218,137.23,137.11,6.6478]
[1723828521344,18.2217,137.2,137.11,6.6478]
[1723828522144,7.2908,137.16,137.11,13.9408]
[1723828523972,7.2913,137.15,137.11,6.6478]
[1723828524344,7.2907,137.16,137.11,6.6478]
[1723828524550,7.2902,137.17,137.12,7.2928]
[1723828524762,7.2908,137.16,137.11,32.1738]
[1723828525164,7.2908,137.16,137.12,45.0]
[1723828526068,7.2908,137.16,137.12,52.2928]
[1723828526273,7.2908,137.16,137.12,45.0]
[1723828526571,25.77689071,137.23,137.12,45.0]
[1723828526764,7.2895,137.19,137.14,7.2916]
[1723828526960,18.2184,137.23,137.14,7.2916]
[1723828527168,7.2896,137.18,137.13,25.5225]
[1723828527339,7.2896,137.18,137.14,45.0]
[1723828527743,18.2184,137.23,137.14,45.0]
[1723828527944,7.54962681,137.25,137.15,18.2276]
[1723828528144,18.2169,137.24,137.15,18.2276]
[1723828528352,10.53970596,137.26,137.14,45.0]
[1723828528570,7.29,137.18,137.13,52.2919]
[1723828528775,18.222,137.2,137.11,6.6478]
[1723828528944,18.222,137.2,137.1,15.2306]
[1723828528945,7.2924,137.13,137.1,15.2306]
[1723828529159,18.2249,137.18,137.1,15.2306]
[1723828529348,7.2924,137.13,137.1,15.2306]
[1723828529581,7.2919,137.14,137.1,15.2306]
[1723828529953,7.2924,137.13,137.08,24.4578]
[1723828530164,7.2933,137.12,137.08,31.7527]
[1723828530470,7.2931,137.12,137.08,24.4578]
[1723828530669,7.2934,137.11,137.08,6.2209]
[1723828530977,7.293,137.12,137.08,6.2209]
[1723828531546,7.293,137.12,137.07,7.2953]
[1723828531774,18.2273,137.16,137.07,7.2953]
[1723828532157,7.2949,137.09,137.05,18.2407]
[1723828532450,6.2428,137.2,137.03,7.2975]
[1723828532451,7.2951,137.08,137.03,7.2975]
[1723828532693,7.2961,137.06,137.02,34.4702]
[1723828532989,7.2966,137.05,137.0,10.229948]
[1723828533280,7.2973,137.04,137.0,2.930948]
[1723828533488,7.2966,137.05,137.0,10.230148]
[1723828533846,6.0409,137.11,137.0,21.178248]
[1723828534044,18.2326,137.12,137.03,7.2972]
[1723828534247,18.2326,137.12,137.01,0.5443518]
[1723828534248,7.2959,137.07,137.02,18.2447]
[1723828534478,7.2951,137.08,137.02,25.5429]
[1723828534989,7.2951,137.08,137.03,7.2971]
[1723828535188,18.2357,137.1,137.0,2.930948]
[1723828535374,18.2357,137.1,137.0,21.177848]
[1723828535584,7.2961,137.06,137.0,28.476648]
[1723828535751,7.2961,137.06,137.01,7.2986]
[1723828536179,7.2968,137.05,137.0,28.476948]
[1723828536386,7.2961,137.06,137.01,7.2986]
[1723828536583,18.2313,137.13,137.02,18.2447]
[1723828536896,18.227,137.16,137.04,22.1571]
[1723828537096,7.2906,137.17,137.11,7.293]
[1723828537261,2.61825813,137.17,137.11,7.293]
[1723828537455,7.2908,137.16,137.12,45.0]
[1723828537974,2.70763482,137.19,137.12,69.4046]
[1723828538180,7.2898,137.18,137.13,22.9189]
[1723828538483,7.2911,137.16,137.13,15.6267]
[1723828538783,7.55008661,137.21,137.09,22.8038]
[1723828538981,7.2922,137.14,137.09,30.0982]
[1723828539155,7.2932,137.12,137.09,6.6539]
[1723828539776,18.2248,137.18,137.05,22.8038]
[1723828539777,6.0053,137.15,137.05,22.8038]
[1723828539961,18.2302,137.14,137.05,6.6539]
[1723828540169,7.2951,137.08,137.05,6.6539]
[1723828540379,7.2945,137.09,137.05,6.6539]
[1723828540761,7.2951,137.08,137.05,6.6539]
[1723828540983,7.2946,137.09,137.05,6.6539]
[1723828541368,7.2939,137.1,137.05,15.13849424]
[1723828541569,7.2939,137.1,137.05,13.9503]
[1723828541881,67.59340977,137.17,137.07,7.2955]
[1723828541882,7.293,137.12,137.07,7.2955]
[1723828542097,18.2262,137.17,137.05,24.8944]
[1723828542259,7.2935,137.11,137.06,52.2959]
[1723828543461,7.2939,137.1,137.06,45.0]
[1723828543695,7.2934,137.11,137.06,52.2958]
[1723828544397,7.2934,137.11,137.06,52.2956]
[1723828544573,7.2939,137.1,137.06,45.0]
[1723828544771,61.85,137.18,137.07,18.2382]
[1723828544966,21.8126,137.18,137.07,18.2382]
[1723828545202,7.2934,137.11,137.07,18.2382]
[1723828545384,7.2939,137.1,137.05,13.9504]
[1723828545592,18.2337,137.11,137.05,6.6539]
[1723828545767,7.2951,137.08,137.03,7.2976]
[1723828546078,18.2337,137.11,137.02,6.1864]
[1723828546603,18.2366,137.09,137.02,6.1864]
[1723828547204,7.2967,137.05,137.02,6.1864]
[1723828547371,6.1044,137.11,137.02,6.1864]
[1723828547716,18.2328,137.12,137.04,7.2967]
[1723828547870,7.2951,137.08,137.03,52.2975]
[1723828548073,7.2955,137.07,137.03,7.2975]
[1723828548407,7.2951,137.08,137.03,7.2975]
[1723828548694,6.40994364,137.08,137.03,7.2975]
[1723828548872,6.40994364,137.08,137.02,24.4313]
[1723828549097,6.40994364,137.08,137.03,52.2975]
[1723828549822,7.2946,137.09,137.04,7.297]
[1723828549993,7.295,137.08,137.03,52.2975]
[1723828550190,7.2941,137.1,137.04,18.2423]
[1723828550391,7.2946,137.09,137.04,25.539]
[1723828551091,33.4853,137.18,137.06,18.2393]
[1723828551296,7.2928,137.12,137.08,18.237]
[1723828551597,7.2935,137.11,137.07,7.2953]
[1723828551924,18.2301,137.14,137.05,18.2406]
[1723828552102,7.294,137.1,137.05,7.2962]
[1723828552306,7.2932,137.12,137.07,7.2954]
[1723828552764,7.2932,137.12,137.08,7.2949]
[1723828553022,7.2918,137.14,137.09,7.2939]
[1723828553238,7.2918,137.14,137.08,18.2366]
[1723828553239,23.69725104,137.18,137.1,40.2065]
[1723828553402,16.1499,137.18,137.14,7.2914]
[1723828553610,7.2897,137.18,137.13,7.2922]
[1723828554146,7.289,137.2,137.15,7.2908]
[1723828554632,7.2891,137.19,137.14,25.5204]
[1723828555208,7.2887,137.2,137.15,8.74810888]
[1723828555526,7.2878,137.22,137.17,7.2902]
[1723828556015,7.54616962,137.25,137.16,18.2263]
[1723828556215,7.54616962,137.25,137.16,17.7263]
[1723828556400,7.2871,137.23,137.18,7.2896]
[1723828556917,7.2875,137.22,137.18,7.2896]
[1723828557122,7.2875,137.22,137.17,7.29]
[1723828557318,25.75954765,137.28,137.17,6.1332]
[1723828557536,39.6478,137.32,137.22,18.2178]
[1723828557842,7.2839,137.29,137.24,7.2864]
[1723828558020,25.75046161,137.32,137.22,18.2178]
[1723828558339,25.75046161,137.32,137.19,18.2222]
[1723828558542,25.75046161,137.32,137.2,45.0]
[1723828559010,7.2859,137.26,137.21,7.2879]
[1723828559209,7.2849,137.27,137.22,52.2873]
[1723828559442,7.2844,137.28,137.23,7.2868]
[1723828560609,7.2839,137.29,137.24,7.2864]
[1723828560819,18.2062,137.32,137.21,18.2196]
[1723828561042,18.2062,137.32,137.22,45.0]
[1723828561223,7.2866,137.24,137.19,7.2887]
[1723828561425,10.15818771,137.34,137.18,33.7219]
[1723828561747,7.286,137.25,137.21,7.288]
[1723828561949,7.2849,137.27,137.22,7.2875]
[1723828562254,7.2849,137.27,137.2,18.2206]
[1723828562255,18.209,137.3,137.2,18.2206]
[1723828562415,18.209,137.3,137.21,7.288]
[1723828562615,7.2855,137.26,137.21,7.288]
[1723828563119,7.286,137.25,137.2,25.5091]
[1723828563439,10.15818771,137.34,137.14,15.1374]
[1723828563440,7.289,137.2,137.14,15.1374]
[1723828563644,7.2902,137.17,137.14,15.1374]
[1723828563804,6.4958,137.25,137.13,6.5145]
[1723828563805,7.2912,137.15,137.13,6.5145]
[1723828564140,7.2918,137.14,137.1,15.1374]
[1723828564442,18.2247,137.18,137.1,22.4312]
[1723828564738,18.2209,137.21,137.1,33.3715]
[1723828564940,7.2918,137.14,137.1,33.3715]
[1723828565241,7.2919,137.14,137.1,15.1374]
[1723828565441,7.2929,137.12,137.1,15.1374]
[1723828565623,7.293,137.12,137.09,6.5145]
[1723828565811,7.2924,137.13,137.09,6.5145]
[1723828566145,7.2929,137.12,137.09,6.5145]
[1723828566345,7.2924,137.13,137.09,6.5145]
[1723828566527,7.2919,137.14,137.09,13.8089]
[1723828567223,7.2919,137.14,137.1,7.2939]
[1723828567621,18.2221,137.2,137.1,18.2342]
[1723828567823,25.82412123,137.25,137.09,6.5145]
[1723828568017,18.2248,137.18,137.09,6.5145]
[1723828568214,18.2248,137.18,137.1,7.2938]
[1723828568215,7.2913,137.15,137.1,7.2938]
[1723828568833,6.7913,137.15,137.1,7.2938]
[1723828569021,7.2918,137.14,137.09,32.0438]
[1723828569931,7.2923,137.13,137.09,24.7498]
[1723828570138,7.2919,137.14,137.09,32.0441]
[1723828570445,7.2913,137.15,137.1,7.2939]
[1723828570640,7.2898,137.18,137.13,7.2923]
[1723828570818,18.2209,137.21,137.12,7.2927]
[1723828571016,7.2913,137.15,137.11,63.2326]
[1723828571214,18.2235,137.19,137.09,6.5145]
[1723828571445,18.2235,137.19,137.1,52.2935]
[1723828571446,7.2914,137.15,137.1,52.2935]
[1723828571658,18.2195,137.22,137.1,63.2341]
[1723828571824,18.2222,137.2,137.1,63.2341]
[1723828572025,7.2913,137.15,137.1,70.5278]
[1723828572757,7.2918,137.14,137.1,18.2341]
[1723828572948,7.21444187,137.14,137.1,18.2341]
[1723828573155,7.54448687,137.23,137.09,6.5145]
[1723828573362,45.0,137.22,137.09,6.5145]
[1723828573555,18.2277,137.16,137.09,6.5145]
[1723828573857,18.2229,137.19,137.09,24.75]
[1723828574046,6.2916,137.15,137.1,7.2938]
[1723828574368,18.2229,137.19,137.09,24.75]
[1723828574661,18.2262,137.17,137.09,6.5145]
[1723828575147,10.60147307,137.23,137.09,6.5145]
[1723828575356,45.0,137.22,137.09,6.5145]
[1723828576061,7.2932,137.12,137.09,6.5145]
[1723828576354,10.60147307,137.23,137.09,6.5145]
[1723828576555,18.2223,137.2,137.11,25.5261]
[1723828576754,10.60147307,137.23,137.1,45.0]
[1723828576755,7.2879,137.22,137.17,7.2897]
[1723828577260,7.2881,137.21,137.16,25.5171]
[1723828577781,7.2881,137.21,137.17,7.2901]
[1723828578342,18.2136,137.26,137.17,7.2901]
[1723828578539,7.2882,137.21,137.17,7.2901]
[1723828578749,7.2882,137.21,137.16,25.517]
[1723828579363,7.2877,137.22,137.17,7.2899]
[1723828579947,7.54226013,137.27,137.13,6.3311]
[1723828579948,7.2898,137.18,137.13,31.8534]
[1723828580745,7.2892,137.19,137.14,7.2917]
[1723828581174,18.2202,137.22,137.14,7.2917]
[1723828581175,7.2897,137.18,137.14,7.2917]
[1723828581359,7.2893,137.19,137.14,7.2917]
[1723828582489,7.2886,137.2,137.15,7.2912]
[1723828582655,7.2882,137.21,137.16,52.2906]
[1723828582868,7.2891,137.19,137.15,7.2912]
[1723828583161,7.2891,137.19,137.14,18.2286]
[1723828583382,7.2884,137.21,137.16,7.2906]
[1723828583544,7.2886,137.2,137.15,7.2911]
[1723828583749,18.2168,137.24,137.14,18.2286]
[1723828583750,7.2881,137.21,137.14,18.2286]
[1723828583980,7.2866,137.24,137.19,7.289]
[1723828584162,7.2865,137.24,137.19,7.289]
[1723828584361,7.2859,137.25,137.2,7.2886]
[1723828584568,7.2859,137.25,137.21,6.5835]
[1723828584882,18.2131,137.32,137.22,46.45706292]
[1723828585079,18.2131,137.32,137.22,63.2183]
[1723828585258,7.2842,137.29,137.24,7.2863]
[1723828585457,7.2842,137.29,137.25,45.0]
[1723828585858,7.2858,137.26,137.22,18.2183]
[1723828586084,18.2087,137.3,137.22,18.2183]
[1723828586264,7.2844,137.28,137.23,52.2869]
[1723828586464,7.2838,137.29,137.24,7.2863]
[1723828587065,7.2843,137.28,137.23,52.2869]
[1723828587473,7.2849,137.27,137.23,45.0]
[1723828588293,7.2854,137.26,137.22,18.2183]
[1723828588872,7.2854,137.26,137.22,25.5058]
[1723828590184,7.285,137.27,137.22,25.5058]
[1723828590702,7.2845,137.28,137.24,7.2864]
[1723828590895,7.2838,137.29,137.25,45.0]
[1723828591466,7.283,137.31,137.25,45.0]
[1723828591885,7.2831,137.31,137.26,26.95312689]
[1723828592091,7.2831,137.31,137.27,45.0]
[1723828592421,7.2835,137.3,137.27,45.0]
[1723828592564,7.55548998,137.36,137.28,13.8844]
[1723828592565,7.2826,137.32,137.28,13.8844]
[1723828592771,16.1039,137.38,137.28,6.6002]
[1723828592772,7.2828,137.31,137.28,6.6002]
[1723828593012,7.2835,137.3,137.28,6.6002]
[1723828593573,7.2828,137.31,137.28,6.6002]
[1723828594192,7.2823,137.32,137.28,6.6002]
[1723828594695,7.2828,137.31,137.28,6.6002]
[1723828595006,7.2833,137.3,137.28,6.6002]
[1723828595320,7.2859,137.25,137.24,6.6002]
[1723828595603,7.2854,137.26,137.24,6.6002]
[1723828596096,7.285,137.27,137.24,6.6002]
[1723828596500,7.2854,137.26,137.24,6.6002]
[1723828596879,7.2856,137.26,137.24,6.6002]
[1723828597214,18.2052,137.33,137.25,45.0]
[1723828597512,7.2833,137.3,137.26,7.2849]
[1723828597680,18.2011,137.36,137.25,63.2142]
[1723828597681,7.2824,137.32,137.27,52.2845]
[1723828598016,18.2011,137.36,137.29,7.2838]
[1723828598201,18.2011,137.36,137.3,45.0]
[1723828598202,7.2817,137.33,137.3,45.0]
[1723828598774,7.2813,137.34,137.3,45.0]
[1723828599083,7.2808,137.35,137.3,52.2832]
[1723828599273,7.55441591,137.4,137.31,22.2773]
[1723828599480,18.1888,137.45,137.32,45.12549]
[1723828599697,25.74383401,137.45,137.35,7.2805]
[1723828600112,25.74383401,137.45,137.36,45.0]
[1723828600706,7.2791,137.38,137.33,7.2813]
[1723828600869,7.2791,137.38,137.34,45.0]
[1723828601070,7.2805,137.36,137.34,45.0]
[1723828601288,18.1947,137.41,137.31,29.56]
[1723828601618,7.2794,137.38,137.33,7.2813]
[1723828601899,18.1947,137.41,137.34,45.0]
[1723828602100,18.1947,137.41,137.31,47.766]
[1723828602322,7.2797,137.37,137.31,40.4837]
[1723828602608,18.1905,137.44,137.35,7.2806]
[1723828602819,7.2786,137.39,137.34,7.281]
[1723828603387,7.2786,137.39,137.35,45.0]
[1723828603881,7.2791,137.38,137.35,45.0]
[1723828604196,7.2797,137.37,137.35,45.0]
[1723828604392,7.2801,137.36,137.34,45.0]
[1723828604574,7.2797,137.37,137.33,45.0]
[1723828604774,7.2802,137.36,137.33,45.0]
[1723828605214,10.64543906,137.45,137.31,22.2773]
[1723828605438,18.1983,137.38,137.31,22.2773]
[1723828605607,7.281,137.35,137.31,22.2773]
[1723828607114,18.1983,137.38,137.31,22.2773]
[1723828607337,7.2813,137.34,137.31,22.2773]
[1723828607550,7.2808,137.35,137.31,22.2773]
[1723828607835,7.2808,137.35,137.32,45.0]
[1723828609239,7.2802,137.36,137.32,52.2821]
[1723828609456,7.2795,137.38,137.34,7.2811]
[1723828609759,7.2786,137.39,137.35,53.51673461]
[1723828609929,7.2786,137.39,137.36,1.23604461]
[1723828610102,7.2786,137.39,137.35,45.0]
[1723828610306,7.2794,137.38,137.35,45.0]
[1723828610533,7.2794,137.38,137.34,45.0]
[1723828611509,7.2818,137.33,137.31,22.2773]
[1723828611938,7.2822,137.32,137.31,22.2773]
[1723828612442,7.2819,137.33,137.31,22.2773]
[1723828612816,7.2822,137.32,137.31,22.2773]
[1723828613153,15.7911,137.39,137.27,6.5496]
[1723828613320,7.2833,137.3,137.27,6.5496]
[1723828613650,7.2829,137.31,137.27,6.5496]
[1723828613939,15.7911,137.39,137.27,6.5496]
[1723828613940,7.2834,137.3,137.27,6.5496]
[1723828614308,7.2843,137.28,137.27,6.5496]
[1723828614508,7.284,137.29,137.27,6.5496]
[1723828615941,7.2843,137.28,137.27,6.5496]
[1723828616146,7.2843,137.28,137.26,15.2872]
[1723828616450,7.2849,137.27,137.24,6.2658]
[1723828617251,7.2854,137.26,137.24,6.2658]
[1723828617447,6.5752,137.33,137.22,15.983]
[1723828617662,7.287,137.23,137.22,15.983]
[1723828617844,7.2871,137.23,137.21,6.2658]
[1723828618931,7.2875,137.22,137.21,6.2658]
[1723828619550,18.2106,137.29,137.21,6.2658]
[1723828620145,7.2869,137.24,137.21,6.2658]
[1723828620351,18.2106,137.29,137.22,53.5284748]
[1723828620532,7.2847,137.28,137.24,7.2864]
[1723828620731,7.2847,137.28,137.25,45.0]
[1723828621319,18.2021,137.35,137.25,15.983]
[1723828621559,7.2826,137.32,137.28,6.2658]
[1723828621720,18.1982,137.38,137.29,45.0]
[1723828622118,18.1982,137.38,137.3,1.45600945]
[1723828622531,7.2815,137.34,137.3,8.73920945]
[1723828622752,7.2812,137.34,137.31,45.0]
[1723828622989,7.2818,137.33,137.31,45.0]
[1723828623128,7.2818,137.33,137.3,45.0]
[1723828623330,7.2813,137.34,137.3,45.0]
[1723828623532,7.2808,137.35,137.3,52.2832]
[1723828623928,18.1982,137.38,137.3,45.0]
[1723828624129,7.2821,137.33,137.3,45.0]
[1723828624359,6.7821,137.33,137.29,45.0]
[1723828624766,7.2824,137.32,137.29,45.0]
[1723828625064,18.2012,137.36,137.28,6.2658]
[1723828625250,7.2823,137.32,137.28,6.2658]
[1723828625449,7.2818,137.33,137.28,13.5501]
[1723828625858,7.2822,137.32,137.28,6.2658]
[1723828626077,7.2818,137.33,137.28,13.5501]
[1723828626287,18.2012,137.36,137.28,6.2658]
[1723828626579,7.2818,137.33,137.29,45.0]
[1723828626788,7.2811,137.35,137.29,45.0]
[1723828626987,7.2813,137.34,137.3,7.2831]
[1723828627154,7.2813,137.34,137.31,45.0]
[1723828627362,7.2806,137.35,137.31,45.0]
[1723828627590,7.2812,137.34,137.31,45.0]
[1723828627795,18.1994,137.37,137.28,6.2658]
[1723828628091,7.2823,137.32,137.29,45.0]
[1723828628298,18.1994,137.37,137.29,45.0]
[1723828628587,7.2817,137.33,137.3,18.2076]
[1723828628772,7.2817,137.33,137.29,7.2838]
[1723828629091,7.2815,137.34,137.3,45.0]
[1723828629384,7.2815,137.34,137.3,52.2832]
[1723828629892,7.2807,137.35,137.31,7.2826]
[1723828630059,7.2802,137.36,137.32,52.2822]
[1723828630254,7.2797,137.37,137.33,45.0]
[1723828630458,7.2794,137.38,137.33,52.2813]
[1723828630672,7.2796,137.37,137.33,45.0]
[1723828630959,7.2811,137.35,137.32,15.1253]
[1723828631357,7.2812,137.34,137.32,15.1253]
[1723828631569,7.2808,137.35,137.32,15.1253]
[1723828633604,25.98524972,137.43,137.28,6.2658]
[1723828633892,7.2843,137.28,137.25,6.4085]
[1723828634493,7.2851,137.27,137.25,6.4085]
[1723828634684,7.285,137.27,137.25,6.4085]
[1723828634859,18.2063,137.32,137.25,6.4085]
[1723828635061,7.2844,137.28,137.25,6.4085]
[1723828635365,7.2844,137.28,137.25,7.86229684]
[1723828636077,7.2844,137.28,137.25,6.4085]
[1723828636387,7.2849,137.27,137.25,6.4085]
[1723828636692,16.2965,137.36,137.22,18.2181]
[1723828636693,16.2965,137.36,137.22,6.3181]
[1723828636997,65.0,137.35,137.22,6.3181]
[1723828637570,7.2865,137.24,137.22,6.3181]
[1723828637958,7.286,137.25,137.22,6.3181]
[1723828638363,7.2855,137.26,137.22,6.3181]
[1723828638778,7.2855,137.26,137.23,45.0]
[1723828639493,7.2861,137.25,137.23,45.0]
[1723828639696,7.287,137.23,137.22,6.3181]
[1723828639897,7.2866,137.24,137.22,6.3181]
[1723828640100,18.2126,137.27,137.22,6.3181]
[1723828640101,18.2089,137.3,137.22,6.3181]
[1723828640396,7.2855,137.26,137.22,6.3181]
[1723828640697,18.2089,137.3,137.22,13.6055]
[1723828641067,7.285,137.27,137.23,45.0]
[1723828641792,7.2844,137.28,137.23,45.0]
[1723828642008,7.2844,137.28,137.23,52.2868]
[1723828642166,25.75379454,137.33,137.25,7.2857]